bitfinex-derivatives/quotes_ETHF0:USTF0_20241129
["timestamp","ask_amount","ask_price","bid_price","bid_amount"]
[1732899637066,0.27752,3599.7,3599.6,0.27751]
[1732899637267,0.4348,3599.8,3599.5,0.27751]
[1732899637268,0.27752,3599.6,3599.5,0.27751]
[1732899637575,0.4348,3599.8,3599.4,1.40252]
[1732899637576,0.27752,3599.5,3599.4,1.40252]
[1732899637769,0.27752,3599.5,3599.4,1.42252]
[1732899638474,0.27752,3599.6,3599.5,0.27751]
[1732899638673,0.4348,3599.8,3599.4,1.125]
[1732899638873,0.7123,3599.8,3599.7,0.2775]
[1732899640176,0.4348,3599.8,3599.7,0.2775]
[1732899640576,3.2078,3600.0,3599.9,0.27749]
[1732899640777,3.48528,3600.0,3599.9,0.27749]
[1732899640976,0.27749,3599.9,3599.8,0.27749]
[1732899641177,0.27749,3599.9,3599.8,0.20395846]
[1732899641873,0.27749,3599.9,3599.8,0.03]
[1732899642280,0.27749,3599.9,3599.8,0.3075]
[1732899642673,0.27749,3599.9,3599.8,0.2775]
[1732899643576,0.2775,3599.8,3599.7,1.125]
[1732899644078,3.6517,3600.0,3599.5,0.27752]
[1732899644079,0.27751,3599.6,3599.5,0.27752]
[1732899645376,0.4268,3599.7,3599.6,0.27751]
[1732899646587,0.7043,3599.7,3599.6,0.27751]
[1732899646877,0.4268,3599.7,3599.3,0.4092]
[1732899647069,0.4268,3599.7,3599.3,0.05]
[1732899647070,0.27754,3599.4,3599.3,0.05]
[1732899647677,0.27754,3599.3,3599.2,0.27753]
[1732899647876,0.27754,3599.2,3599.1,1.40255]
[1732899648072,3.48534,3599.2,3599.1,0.27755]
[1732899648884,0.27755,3599.1,3599.0,1.40256]
[1732899649084,0.72785,3599.1,3599.0,1.40256]
[1732899649985,0.72785,3599.1,3598.6,1.55916]
[1732899649986,0.4503,3599.1,3598.8,0.27757]
[1732899650179,0.27757,3598.9,3598.8,1.43257]
[1732899651780,0.4503,3599.1,3598.8,1.155]
[1732899652189,0.4503,3599.1,3599.0,0.27756]
[1732899652393,0.4503,3599.1,3598.8,1.155]
[1732899652394,0.27755,3599.2,3598.9,0.8674]
[1732899652592,0.27755,3599.2,3599.1,0.27755]
[1732899653189,0.27754,3599.3,3599.2,0.27754]
[1732899655485,0.27755,3599.1,3598.9,0.4343]
[1732899655688,3.90164,3599.4,3598.9,1.49256]
[1732899655689,1.10476,3599.3,3598.9,1.49256]
[1732899655884,3.91346,3599.0,3598.9,1.215]
[1732899656084,3.91346,3599.0,3598.9,1.49257]
[1732899656889,3.91346,3599.0,3598.9,0.36757]
[1732899657079,3.91346,3599.0,3598.9,0.27757]
[1732899658587,0.27757,3598.8,3598.7,1.40257]
[1732899658786,0.27757,3598.8,3598.7,1.41257]
[1732899658988,0.27757,3598.8,3598.7,1.40257]
[1732899659683,0.27757,3598.8,3597.9,2.54393885]
[1732899659684,0.27761,3598.3,3598.2,3.48542]
[1732899659884,1.38789,3598.8,3597.9,2.31483225]
[1732899659885,3.2078,3598.5,3598.1,1.122]
[1732899660081,0.27762,3598.2,3598.1,1.39962]
[1732899660482,0.4335,3598.3,3597.9,0.8573]
[1732899660686,0.4335,3598.3,3595.2,13.19517239]
[1732899660687,3.2078,3598.1,3597.4,0.8573]
[1732899660891,0.27765,3597.8,3597.7,0.27765]
[1732899661188,0.27765,3597.9,3597.8,0.27765]
[1732899661384,3.2078,3598.1,3597.8,0.27765]
[1732899661584,3.48543,3598.1,3597.6,1.122]
[1732899661784,3.2078,3598.1,3597.6,1.122]
[1732899661988,0.4335,3598.3,3597.6,1.122]
[1732899662189,0.4351,3598.4,3597.9,0.69411]
[1732899662387,3.6413,3598.9,3598.1,0.69408]
[1732899662588,0.27757,3598.8,3598.6,0.27759]
[1732899662889,4.32747,3598.9,3598.7,0.27758]
[1732899663084,4.32747,3598.9,3598.2,0.69406]
[1732899663085,4.0499,3598.9,3598.2,0.69406]
[1732899663290,0.27758,3598.8,3598.2,0.69406]
[1732899663487,3.2078,3598.5,3598.4,0.2776]
[1732899664295,3.2078,3598.5,3598.2,0.27762]
[1732899664493,3.2078,3598.5,3598.4,0.2776]
[1732899664686,3.4854,3598.5,3598.0,1.2937]
[1732899664891,3.2078,3598.5,3598.4,0.2776]
[1732899665495,3.4854,3598.5,3598.4,0.2776]
[1732899665697,3.2078,3598.5,3598.0,1.9845]
[1732899665898,0.27763,3598.1,3598.0,0.27763]
[1732899666194,0.27764,3597.9,3597.8,1.39965]
[1732899666396,1.51384,3598.0,3597.8,1.39965]
[1732899666596,0.27764,3597.9,3597.8,0.27765]
[1732899666793,1.2362,3598.0,3597.6,1.122]
[1732899667100,3.48546,3597.8,3597.7,0.27766]
[1732899667494,3.2078,3597.8,3597.7,0.27766]
[1732899668797,3.2078,3597.8,3597.7,1.39966]
[1732899669500,3.48545,3597.8,3597.7,1.39966]
[1732899669798,3.48545,3597.8,3597.7,1.122]
[1732899670195,3.48545,3597.8,3597.7,1.39966]
[1732899670392,3.2078,3597.8,3597.7,1.39966]
[1732899670590,0.27763,3598.2,3598.1,0.27762]
[1732899671395,3.2078,3598.3,3597.8,0.8341]
[1732899671595,0.27763,3598.1,3598.0,0.27763]
[1732899671790,3.2078,3598.3,3597.4,1.122]
[1732899671997,0.27767,3597.7,3597.6,0.27766]
[1732899672905,0.866,3597.8,3597.1,0.4203]
[1732899673199,3.2078,3597.5,3597.4,0.27768]
[1732899673404,3.2078,3597.5,3597.1,1.5423]
[1732899673698,3.2078,3597.5,3597.2,0.27769]
[1732899673699,0.2777,3597.3,3597.2,0.27769]
[1732899674097,0.27771,3597.1,3596.9,0.848]
[1732899674301,3.2078,3597.5,3596.9,1.99]
[1732899674497,3.2078,3597.5,3597.3,0.27769]
[1732899674498,0.27769,3597.4,3597.3,0.27769]
[1732899674800,0.2777,3597.3,3597.2,0.27769]
[1732899675596,0.27769,3597.4,3597.3,0.27768]
[1732899676607,0.2777,3597.3,3597.2,0.27769]
[1732899678200,3.2078,3597.5,3597.4,0.27768]
[1732899678201,3.48548,3597.5,3597.4,0.27768]
[1732899678406,0.2777,3597.3,3597.2,0.27769]
[1732899681007,0.27771,3597.1,3596.9,1.122]
[1732899681200,1.38811,3598.3,3596.9,1.39971]
[1732899681201,3.48551,3597.0,3596.9,1.39971]
[1732899681400,3.2078,3597.0,3596.9,1.39971]
[1732899681608,3.2078,3597.4,3597.3,0.27769]
[1732899682705,3.2078,3597.4,3595.8,1.38903]
[1732899682706,0.27771,3597.2,3597.1,0.2777]
[1732899682904,3.2078,3597.4,3596.8,0.27772]
[1732899682905,0.27773,3596.9,3596.8,0.27772]
[1732899683107,0.27774,3596.7,3596.6,0.27774]
[1732899686009,0.27777,3596.4,3596.3,1.39976]
[1732899687006,3.48556,3596.5,3596.4,0.27776]
[1732899687813,3.2078,3596.5,3596.2,1.122]
[1732899688113,3.2078,3596.5,3596.4,0.27776]
[1732899688515,0.27774,3596.6,3596.2,1.122]
[1732899688714,0.27774,3596.6,3596.5,0.27775]
[1732899690315,3.2078,3596.9,3596.0,3.2078]
[1732899690316,5.52263225,3596.9,3596.0,3.2078]
[1732899690512,0.27776,3596.5,3596.4,0.27775]
[1732899691814,0.27777,3596.4,3596.3,0.27776]
[1732899692117,0.27778,3596.2,3596.1,0.27777]
[1732899692418,3.2078,3596.5,3596.0,1.119]
[1732899692612,0.27777,3596.3,3596.2,0.27776]
[1732899693117,0.27778,3596.1,3596.0,0.27779]
[1732899693310,0.2778,3595.9,3595.8,0.2778]
[1732899693911,3.2078,3596.1,3595.6,1.119]
[1732899694119,0.27781,3595.8,3595.7,0.27781]
[1732899695619,0.27783,3595.6,3595.5,0.27782]
[1732899695814,3.48562,3595.7,3595.6,0.27782]
[1732899696116,3.2078,3595.7,3595.6,0.27782]
[1732899696319,0.27779,3596.0,3595.6,0.27782]
[1732899696516,3.2078,3596.1,3596.0,0.27779]
[1732899697821,3.2078,3596.1,3595.4,0.6946]
[1732899697822,0.2778,3596.0,3595.4,0.6946]
[1732899698023,0.27781,3595.9,3595.8,0.2778]
[1732899698222,0.27781,3595.9,3595.8,0.3078]
[1732899698422,0.2778,3595.9,3595.8,0.01]
[1732899698625,0.2778,3595.9,3595.8,0.27781]
[1732899698820,0.27782,3595.8,3595.7,0.2778]
[1732899699025,0.27782,3595.8,3595.7,0.2878]
[1732899699418,3.2078,3596.1,3595.7,0.01]
[1732899699925,0.27781,3595.9,3595.8,0.2778]
[1732899704032,3.2078,3596.1,3595.9,0.27779]
[1732899704033,0.2778,3596.0,3595.9,0.27779]
[1732899704329,3.48558,3596.1,3596.0,0.27779]
[1732899704737,3.2078,3596.1,3595.6,0.69456]
[1732899704936,3.2078,3596.1,3595.6,0.26]
[1732899705130,3.48559,3596.1,3596.0,0.27779]
[1732899705631,3.2078,3596.1,3596.0,0.27779]
[1732899706340,3.2078,3596.5,3596.4,0.27775]
[1732899706832,3.48555,3596.5,3596.4,0.27775]
[1732899707339,0.27777,3596.4,3596.3,0.27776]
[1732899708131,0.27777,3596.4,3596.3,0.03]
[1732899708635,0.27778,3596.1,3596.0,1.119]
[1732899708836,0.27778,3596.1,3596.0,1.159]
[1732899709431,0.27778,3596.1,3596.0,1.43678]
[1732899710631,5.52263225,3596.5,3596.0,1.159]
[1732899711643,3.2078,3596.1,3596.0,1.159]
[1732899712134,3.2078,3596.1,3596.0,1.119]
[1732899714943,0.4328,3596.4,3596.0,1.119]
[1732899715154,3.2078,3596.1,3596.0,1.119]
[1732899717341,3.2078,3596.1,3596.0,0.02]
[1732899717549,3.2078,3596.1,3595.7,1.119]
[1732899717839,0.4227,3596.0,3595.7,1.359]
[1732899718035,0.4227,3596.0,3595.8,0.4096]
[1732899718234,0.4227,3596.0,3595.8,0.4296]
[1732899718535,0.4227,3596.0,3595.8,1.5486]
[1732899719140,3.2078,3596.1,3595.8,1.5486]
[1732899719341,0.4317,3596.4,3595.8,1.5486]
[1732899720436,3.2078,3596.1,3595.8,1.5486]
[1732899720840,3.2078,3596.1,3595.9,0.00632152]
[1732899720841,0.4317,3596.0,3595.9,0.00632152]
[1732899721041,0.4317,3596.0,3595.9,0.02632152]
[1732899722443,0.4317,3596.0,3595.9,0.00632152]
[1732899723647,0.8808,3596.0,3595.9,0.00632152]
[1732899727356,3.2078,3596.1,3595.9,0.00632152]
[1732899728441,0.4329,3596.0,3595.9,0.00632152]
[1732899729244,0.8766,3596.0,3595.9,0.00632152]
[1732899730049,1.3004,3596.0,3595.9,0.00632152]
[1732899730853,1.3004,3596.0,3595.9,0.00354618]
[1732899737952,3.2078,3596.1,3595.9,0.00354618]
[1732899738859,0.886,3596.0,3595.9,0.00354618]
[1732899739046,0.4435,3596.0,3595.9,0.00354618]
[1732899739252,3.2078,3596.1,3595.9,0.00354618]
[1732899740650,0.409,3596.0,3595.9,0.00354618]
[1732899740857,3.2078,3596.1,3595.9,0.00354618]
[1732899744055,3.2078,3596.1,3595.9,0.41334618]
[1732899744250,0.4436,3596.0,3595.9,0.41334618]
[1732899744455,0.4436,3596.0,3595.9,0.84504618]
[1732899745561,0.4436,3596.0,3595.9,0.00354618]
[1732899745758,3.2078,3596.1,3595.8,0.32057059]
[1732899746064,3.2078,3597.7,3596.0,2.31483225]
[1732899746255,3.2078,3597.7,3597.3,1.12160225]
[1732899746455,3.2078,3597.7,3597.6,1.12160225]
[1732899746956,3.2078,3598.2,3597.6,1.12160225]
[1732899747161,3.2078,3598.2,3597.8,1.12160225]
[1732899747466,3.2078,3598.2,3597.7,0.4317]
[1732899747467,0.453,3598.1,3597.7,0.4317]
[1732899747854,0.8967,3598.1,3597.7,0.4317]
[1732899749459,3.2078,3597.8,3597.7,0.4317]
[1732899749666,3.2078,3597.8,3597.6,0.4309]
[1732899749667,0.27766,3597.7,3597.6,0.4309]
[1732899749856,3.2078,3597.8,3597.4,1.5284]
[1732899749857,0.27767,3597.5,3597.4,1.5284]
[1732899750062,0.27767,3597.5,3597.4,1.113]
[1732899750456,0.27774,3596.7,3596.6,0.4154]
[1732899750662,0.27774,3596.7,3596.6,0.8663]
[1732899750959,0.27774,3596.7,3596.6,1.9793]
[1732899751355,0.27774,3596.7,3596.6,0.8663]
[1732899751557,0.27774,3596.7,3596.6,1.9793]
[1732899751959,3.2078,3596.9,3596.1,0.4259]
[1732899752167,0.27777,3596.3,3596.2,0.8874]
[1732899752360,3.2078,3596.5,3595.5,1.113]
[1732899752361,0.27782,3595.6,3595.5,1.113]
[1732899752658,0.27783,3595.5,3595.4,0.8874]
[1732899753266,0.27783,3595.5,3595.4,0.4347]
[1732899754260,3.48563,3595.5,3595.4,0.4347]
[1732899762473,3.48563,3595.5,3595.4,0.6347]
[1732899762668,3.2078,3595.5,3595.4,0.6347]
[1732899762873,3.2078,3596.0,3595.4,2.95399624]
[1732899763069,3.2078,3596.0,3595.8,2.31929624]
[1732899763070,3.48559,3596.0,3595.8,2.31929624]
[1732899763271,3.2078,3596.0,3595.8,0.06]
[1732899763472,0.2778,3595.9,3595.8,0.06]
[1732899763772,0.6856,3595.9,3595.8,0.06]
[1732899766684,0.2778,3595.9,3595.8,0.06]
[1732899768572,3.2078,3596.0,3595.4,0.4347]
[1732899768878,0.27783,3595.5,3595.4,1.353]
[1732899770174,0.27783,3595.5,3595.4,0.24]
[1732899770480,0.27783,3595.5,3595.4,1.353]
[1732899771780,0.27783,3595.5,3595.4,0.24]
[1732899775684,3.6288,3595.7,3595.4,0.24]
[1732899776583,3.6288,3595.7,3595.4,2.55929624]
[1732899776880,3.2078,3595.7,3595.4,2.55929624]
[1732899777086,3.2078,3596.1,3595.4,7.97209624]
[1732899777280,3.2078,3596.1,3596.0,2.31929624]
[1732899777582,1.2812,3596.6,3596.0,0.05]
[1732899777786,3.2078,3596.3,3596.0,0.05]
[1732899779490,3.2078,3596.3,3596.1,3.42929624]
[1732899779680,3.2078,3597.3,3596.1,3.86929624]
[1732899779875,0.4479,3597.2,3596.5,2.31929624]
[1732899780081,0.4479,3597.2,3596.5,2.38929624]
[1732899780486,0.4479,3597.2,3596.6,0.8647]
[1732899780782,0.4479,3597.2,3596.9,2.31929624]
[1732899780981,3.6557,3597.2,3596.6,0.8647]
[1732899781188,3.6557,3597.2,3596.6,0.9347]
[1732899781579,3.6557,3597.2,3596.6,0.07]
[1732899781987,3.6557,3597.2,3596.4,1.11]
[1732899782190,3.6557,3597.2,3596.4,1.16]
[1732899782495,3.6557,3597.2,3596.5,2.31929624]
[1732899782698,3.2078,3597.6,3596.9,2.31929624]
[1732899782896,3.2078,3597.6,3597.3,2.31929624]
[1732899783197,3.2078,3597.6,3597.3,1.11]
[1732899783497,0.4231,3597.5,3596.7,1.11]
[1732899783701,3.2078,3597.1,3596.9,2.31929624]
[1732899784296,0.4464,3597.0,3596.9,2.31929624]
[1732899784491,0.4154,3597.4,3596.9,3.42929624]
[1732899784695,0.4464,3597.4,3597.3,2.31929624]
[1732899784896,3.2078,3597.9,3597.3,2.31929624]
[1732899785297,3.2078,3597.9,3597.4,0.8601]
[1732899785795,3.2078,3597.9,3597.7,2.31929624]
[1732899786094,0.4154,3598.2,3597.7,2.31929624]
[1732899786296,0.4154,3598.2,3597.7,3.42929624]
[1732899786500,3.2078,3598.3,3597.7,3.42929624]
[1732899786695,3.2078,3598.3,3598.0,2.31929624]
[1732899787095,3.2078,3598.3,3597.1,3.2078]
[1732899787290,3.2078,3597.4,3596.8,1.11]
[1732899787491,0.4212,3597.3,3596.9,2.32929624]
[1732899787702,0.8515,3597.3,3596.9,2.32929624]
[1732899788292,0.8515,3597.3,3596.9,3.43929624]
[1732899789801,3.2078,3597.4,3596.9,3.43929624]
[1732899789998,3.2078,3597.4,3597.3,2.31929624]
[1732899790294,3.2078,3598.0,3597.3,2.33929624]
[1732899790497,3.2078,3598.0,3597.9,2.31929624]
[1732899790700,3.2078,3598.0,3597.9,3.42929624]
[1732899791704,3.2078,3598.0,3597.9,3.51929624]
[1732899792501,5.99213027,3599.0,3597.9,3.51929624]
[1732899792706,5.99213027,3599.0,3598.6,2.31929624]
[1732899793200,5.99213027,3599.0,3598.2,2.31929624]
[1732899793401,3.2078,3598.6,3598.2,2.31929624]
[1732899793909,3.2078,3598.6,3598.2,2.75309624]
[1732899794701,3.2078,3598.6,3597.9,1.11]
[1732899794903,3.2078,3598.0,3597.9,1.11]
[1732899796199,0.8256,3598.5,3597.9,1.11]
[1732899796505,3.2078,3598.7,3598.4,2.31929624]
[1732899796701,3.2078,3598.7,3598.5,0.8497]
[1732899796901,3.2078,3599.1,3598.5,0.8497]
[1732899797102,0.4465,3599.0,3598.5,0.8497]
[1732899797503,0.4465,3599.0,3598.8,2.31929624]
[1732899797708,3.2078,3599.1,3598.9,1.11]
[1732899798709,3.2078,3599.1,3598.3,3.2078]
[1732899798908,3.2078,3598.7,3598.3,3.42929624]
[1732899799111,0.8655,3598.6,3598.3,3.42929624]
[1732899799610,3.2078,3599.1,3598.3,3.42929624]
[1732899799802,3.2078,3599.1,3598.8,2.31929624]
[1732899800006,0.419,3599.0,3598.8,2.31929624]
[1732899801009,3.2078,3599.1,3598.9,0.4436]
[1732899801403,0.4254,3599.5,3598.9,0.4436]
[1732899801611,3.2078,3599.6,3599.4,2.31929624]
[1732899801810,3.2078,3599.6,3599.5,1.109]
[1732899802308,3.2078,3599.8,3599.2,1.109]
[1732899802508,3.2078,3599.8,3599.3,2.31929624]
[1732899802509,1.2559,3599.7,3599.3,2.31929624]
[1732899803104,1.2559,3599.7,3599.3,2.44929624]
[1732899803313,3.2078,3599.4,3599.3,0.13]
[1732899803505,3.2078,3599.4,3599.2,1.109]
[1732899804113,0.8426,3599.7,3599.3,2.31929624]
[1732899804409,3.2078,3600.1,3599.3,2.31929624]
[1732899804410,3.2078,3600.1,3599.3,2.76029624]
[1732899804709,3.2078,3600.1,3599.8,2.31929624]
[1732899804914,3.2078,3600.1,3599.8,2.36929624]
[1732899805807,3.2078,3600.9,3599.8,2.36929624]
[1732899806007,3.2078,3600.9,3600.4,2.31929624]
[1732899806213,3.2078,3600.9,3600.5,1.109]
[1732899810209,3.2078,3600.9,3600.5,1.119]
[1732899810603,3.2078,3600.9,3600.8,2.31929624]
[1732899810911,3.2078,3600.9,3600.8,2.32929624]
[1732899811111,3.2078,3600.9,3600.8,0.01]
[1732899811307,3.2078,3600.9,3600.1,1.107]
[1732899811514,3.2078,3600.3,3600.1,1.137]
[1732899811816,0.4232,3600.2,3600.1,1.137]
[1732899812113,0.4232,3600.2,3600.1,1.107]
[1732899812316,0.4232,3600.2,3600.1,3.43629624]
[1732899812510,3.2078,3600.3,3600.1,3.43629624]
[1732899813203,3.2078,3600.3,3600.2,0.4242]
[1732899813413,3.2078,3600.3,3600.2,0.4542]
[1732899813717,3.2078,3600.9,3600.2,0.4542]
[1732899813915,3.2078,3600.9,3600.7,2.31929624]
[1732899814118,3.6356,3600.9,3600.7,2.33929624]
[1732899815617,3.2078,3600.9,3600.7,2.33929624]
[1732899816417,3.2078,3600.9,3600.7,2.95073456]
[1732899818012,3.2078,3600.9,3600.8,0.4077]
[1732899818207,3.2078,3600.9,3600.8,0.4377]
[1732899818410,3.2078,3600.9,3600.8,0.03]
[1732899819020,3.2078,3600.9,3599.8,3.2078]
[1732899819021,3.2078,3600.9,3599.9,2.93073456]
[1732899819216,3.2078,3600.3,3600.0,1.106]
[1732899819423,0.8646,3600.2,3600.0,1.176]
[1732899819810,0.8646,3600.2,3600.0,0.07]
[1732899820019,0.8646,3600.2,3600.1,1.106]
[1732899820313,0.8646,3600.2,3600.1,1.126]
[1732899820825,0.8646,3600.2,3600.1,1.106]
[1732899821212,0.8646,3600.2,3599.9,2.93073456]
[1732899821416,0.8646,3600.2,3600.1,1.106]
[1732899822415,3.2078,3600.3,3600.1,1.106]
[1732899823415,3.2078,3600.8,3600.1,1.186]
[1732899823720,3.2078,3600.8,3600.7,2.93073456]
[1732899826425,0.4181,3601.8,3600.7,2.95073456]
[1732899826426,3.2078,3601.4,3600.7,2.95073456]
[1732899826619,3.2078,3601.4,3601.1,2.93073456]
[1732899826815,0.417,3601.7,3601.2,1.106]
[1732899827123,0.417,3601.7,3601.5,2.93073456]
[1732899827426,0.4181,3601.8,3601.5,2.95073456]
[1732899827619,0.417,3602.1,3601.5,2.95073456]
[1732899832826,3.2078,3601.9,3601.5,2.98073456]
[1732899833829,3.2078,3601.9,3601.5,2.99073456]
[1732899834919,3.2078,3601.9,3601.2,1.106]
[1732899835120,3.2078,3601.3,3601.2,1.176]
[1732899835536,3.2078,3601.3,3601.2,0.01]
[1732899838124,3.2078,3601.3,3601.2,2.32450513]
[1732899839334,3.2078,3601.3,3601.2,2.31450513]
[1732899839921,3.2078,3601.3,3601.2,2.32450513]
[1732899840327,0.842,3601.8,3601.2,2.32450513]
[1732899840328,0.421,3601.8,3601.2,2.32450513]
[1732899840629,0.421,3601.8,3601.7,2.31450513]
[1732899841432,0.421,3601.8,3601.3,2.31450513]
[1732899841730,0.421,3601.8,3600.9,2.31450513]
[1732899841731,3.2078,3601.4,3600.9,2.31450513]
[1732899842031,5.421,3601.8,3600.9,2.31450513]
[1732899842032,3.2078,3601.5,3600.9,2.36450513]
[1732899842233,3.2078,3601.5,3601.3,2.31450513]
[1732899843127,3.2078,3601.5,3601.3,2.35450513]
[1732899843328,0.421,3601.8,3601.3,2.63188513]
[1732899843534,3.2078,3601.5,3601.3,2.35450513]
[1732899843731,0.421,3601.8,3601.3,2.63188513]
[1732899843938,0.421,3601.8,3601.3,2.35450513]
[1732899843939,3.2078,3601.5,3601.3,2.35450513]
[1732899844732,0.4232,3601.4,3601.3,2.35450513]
[1732899844935,0.70057,3601.4,3601.3,2.31450513]
[1732899845128,0.70057,3601.4,3601.1,1.104]
[1732899845329,0.4232,3601.4,3601.3,2.31450513]
[1732899845828,0.4232,3601.4,3601.3,3.69588513]
[1732899846235,0.4232,3601.4,3601.3,3.70588513]
[1732899847135,0.421,3601.8,3601.3,3.42850513]
[1732899847331,0.8569,3601.8,3601.7,2.31450513]
[1732899848739,0.8569,3601.8,3601.7,2.59185513]
[1732899849838,3.2078,3601.9,3601.8,0.27734]
[1732899850045,3.2078,3601.9,3601.8,0.28734]
[1732899850342,0.8601,3602.3,3601.8,0.02]
[1732899850539,0.8601,3602.3,3602.2,2.59181513]
[1732899851945,0.8601,3602.3,3602.2,2.31450513]
[1732899852136,0.8601,3602.3,3602.2,2.59181513]
[1732899852539,0.4448,3602.9,3602.2,4.64901026]
[1732899852540,3.2078,3602.9,3602.2,4.64901026]
[1732899852838,3.2078,3602.9,3602.8,2.31450513]
[1732899853842,3.2078,3602.9,3602.4,3.41850513]
[1732899854039,3.2078,3602.9,3602.4,3.69579513]
[1732899854040,3.2078,3602.5,3602.4,3.69579513]
[1732899854243,3.2078,3602.9,3602.8,0.27727]
[1732899854543,3.2078,3602.9,3602.8,2.59177513]
[1732899857847,3.22196,3603.3,3603.2,0.27724]
[1732899858048,3.22196,3603.3,3603.2,3.69474513]
[1732899860346,0.01416,3603.3,3603.2,3.69474513]
[1732899860941,3.22196,3603.3,3602.7,0.69319]
[1732899861143,3.2078,3602.9,3602.8,0.27727]
[1732899861749,3.2078,3602.9,3602.8,1.38027]
[1732899863547,3.2078,3602.9,3602.8,1.39027]
[1732899863752,3.2078,3602.9,3602.8,1.38027]
[1732899865145,0.4144,3603.2,3603.1,0.27724]
[1732899865845,3.2078,3603.3,3603.0,2.31450513]
[1732899866055,3.2078,3603.3,3603.2,0.27724]
[1732899867847,3.92659,3603.8,3603.4,0.27722]
[1732899868144,3.6494,3603.8,3603.4,2.59172513]
[1732899868851,3.6494,3603.8,3603.7,0.2772]
[1732899869150,0.693,3603.7,3602.9,3.2078]
[1732899869449,0.693,3603.7,3602.8,2.31450513]
[1732899869450,3.2078,3603.3,3602.8,2.31450513]
[1732899869646,3.2078,3602.9,3602.8,2.59177513]
[1732899870153,3.48506,3602.9,3602.8,2.31450513]
[1732899870343,0.27729,3602.6,3602.5,0.27729]
[1732899870652,0.27729,3602.5,3602.4,3.69280513]
[1732899870847,3.48509,3602.5,3602.4,3.69280513]
[1732899871249,3.2078,3602.5,3602.4,3.69280513]
[1732899871945,3.2078,3602.5,3602.4,2.59180513]
[1732899872342,3.2078,3602.5,3602.4,2.61180513]
[1732899872954,3.2078,3602.5,3602.4,3.71280513]
[1732899873353,3.2078,3602.5,3602.4,1.3983]
[1732899873654,3.2078,3603.0,3602.9,0.27729]
[1732899873851,0.409,3603.3,3603.2,0.27726]
[1732899874054,3.2078,3603.9,3603.4,0.27725]
[1732899874357,0.68512,3603.8,3603.7,0.15965612]
[1732899874546,0.4079,3603.8,3603.7,0.15965612]
[1732899875143,0.4079,3603.8,3603.5,2.31450513]
[1732899875353,0.27723,3603.7,3603.6,0.27722]
[1732899876147,0.27723,3603.7,3603.5,2.31450513]
[1732899876148,0.68512,3603.8,3603.7,0.27722]
[1732899876349,0.4079,3603.8,3603.7,0.27722]
[1732899876555,0.68512,3603.8,3603.7,0.27722]
[1732899877145,0.4079,3603.8,3603.7,0.27722]
[1732899877648,0.68512,3603.8,3603.7,0.27722]
[1732899878050,0.4079,3603.8,3603.7,0.27722]
[1732899878357,0.68512,3603.8,3603.7,0.27722]
[1732899878556,0.27723,3603.7,3603.6,0.27723]
[1732899878853,0.4079,3603.8,3603.5,2.31450513]
[1732899879055,0.27723,3603.6,3603.5,2.59173513]
[1732899879255,0.4079,3603.8,3603.5,2.31450513]
[1732899879452,0.27723,3603.7,3603.6,0.27722]
[1732899879653,0.27725,3603.5,3603.4,0.27724]
[1732899879847,3.48505,3603.5,3603.4,0.27724]
[1732899880053,0.27725,3603.4,3603.3,1.37825]
[1732899880453,3.2078,3603.5,3603.4,0.27725]
[1732899880656,3.48504,3603.5,3603.4,0.27725]
[1732899881561,3.48504,3603.5,3603.1,2.31450513]
[1732899881562,3.2078,3603.5,3601.2,40.8]
[1732899881755,3.2078,3603.5,3602.6,1.101]
[1732899881756,5.0,3603.5,3602.6,1.101]
[1732899881959,3.4851,3602.7,3602.6,1.101]
[1732899882157,0.27732,3602.6,3602.5,0.27731]
[1732899882356,1.13712,3602.6,3602.5,0.27731]
[1732899882558,0.8598,3602.6,3602.5,0.27731]
[1732899882758,0.8598,3602.6,3602.5,0.16062448]
[1732899885263,0.27733,3602.5,3602.4,0.27732]
[1732899885559,0.8598,3602.6,3602.5,0.27732]
[1732899885755,1.13711,3602.6,3602.5,0.27732]
[1732899887157,0.8598,3602.6,3602.5,0.27732]
[1732899887360,3.2078,3602.7,3602.3,1.5338]
[1732899887569,3.2078,3602.7,3602.6,2.59181513]
[1732899889064,3.2078,3602.7,3602.6,0.27731]
[1732899890265,3.2078,3602.7,3602.6,2.59181513]
[1732899891569,3.2078,3602.7,3601.8,2.59203236]
[1732899891759,2.31450513,3603.4,3602.2,0.27734]
[1732899891760,0.27733,3602.3,3602.2,0.27734]
[1732899891964,3.2078,3602.3,3602.0,1.101]
[1732899892261,3.2078,3602.3,3602.0,1.151]
[1732899892463,3.48514,3602.3,3602.2,0.27734]
[1732899894375,3.2078,3602.3,3602.2,0.27734]
[1732899894569,3.2078,3602.3,3602.2,2.59184513]
[1732899895567,3.2078,3602.8,3602.2,2.52450513]
[1732899895769,3.2078,3602.8,3602.7,2.59180513]
[1732899896671,3.2078,3603.2,3603.1,0.27727]
[1732899896867,3.2078,3603.2,3603.1,3.80277513]
[1732899898976,3.2078,3603.8,3603.1,3.52550513]
[1732899899174,3.2078,3603.8,3603.7,0.27722]
[1732899902580,3.48502,3603.8,3603.7,0.27722]
[1732899902887,3.2078,3603.8,3603.7,0.27722]
[1732899903689,3.48502,3603.8,3603.7,0.27722]
[1732899903987,3.2078,3603.8,3603.2,0.69316]
[1732899904190,0.4348,3603.7,3603.2,0.03]
[1732899904385,3.2078,3603.4,3603.3,1.37625]
[1732899905186,0.4348,3603.7,3603.6,0.27723]
[1732899905882,0.4348,3603.7,3600.6,4.35115426]